bitfinex-derivatives/quotes_ETHF0:USTF0_20260314
["timestamp","ask_amount","ask_price","bid_price","bid_amount"]
[1773463931302,2.3536576,2096.1,2094.9,2.03776921]
[1773463931695,2.3536576,2096.1,2095.0,1.90061921]
[1773463932301,2.3536576,2096.1,2095.0,1.90445115]
[1773463932501,2.3536576,2096.1,2095.2,1.80421486]
[1773463932997,2.34482746,2097.1,2095.4,1.70962565]
[1773463932998,2.35013084,2097.1,2095.4,1.70962565]
[1773463933203,2.35013084,2097.1,2095.8,1.70962565]
[1773463933500,2.35013084,2097.1,2096.0,1.70962565]
[1773463933899,2.35575739,2097.1,2096.0,1.70962565]
[1773463935802,2.35575739,2097.1,2096.1,1.32628625]
[1773463937402,2.35575739,2097.1,2096.3,0.91229319]
[1773463940601,2.35575739,2097.1,2096.3,17.80429319]
[1773463942696,2.35575739,2097.1,2096.4,40.8]
[1773463944804,2.35575739,2097.1,2096.4,57.787]
[1773463947004,0.00562655,2097.1,2096.4,57.787]
[1773463948504,0.67284353,2097.0,2096.4,40.8]
[1773463948805,0.67284353,2097.0,2096.4,57.859]
[1773463949005,0.00562655,2097.1,2096.4,57.859]
[1773463949208,0.67284353,2097.4,2096.4,57.859]
[1773463950110,0.67884643,2097.4,2096.4,57.859]
[1773463950402,0.67884643,2097.4,2096.4,40.8]
[1773463950603,0.67884643,2097.4,2096.5,17.093]
[1773463950810,0.67884643,2097.4,2096.5,17.09704194]
[1773463951006,0.67284353,2097.3,2096.5,17.09704194]
[1773463952306,0.67284353,2097.2,2096.5,17.09704194]
[1773463953111,0.67284353,2097.0,2096.5,0.00404194]
[1773463954508,0.67284353,2096.9,2096.5,0.00404194]
[1773463954709,0.67284353,2097.2,2096.5,0.00404194]
[1773463954911,0.67284353,2097.1,2096.5,0.00404194]
[1773463956111,7.94462287,2097.0,2096.5,0.00404194]
[1773463956311,0.67284353,2097.0,2096.5,0.00404194]
[1773463957308,0.67284353,2096.1,2094.0,2.84765]
[1773463957510,0.57853403,2094.2,2092.9,0.67391534]
[1773463957708,3.9541416,2093.7,2092.9,0.67391534]
[1773463957907,7.28503089,2093.6,2093.1,0.67391534]
[1773463958108,4.53267563,2094.0,2093.2,17.86191534]
[1773463958304,0.57853403,2093.8,2093.2,0.00611239]
[1773463958514,0.57199323,2093.6,2093.2,0.00611239]
[1773463958703,0.57199323,2093.8,2093.2,45.99163653]
[1773463958907,0.67802208,2094.0,2093.3,0.67391534]
[1773463959705,0.67802208,2094.0,2093.2,45.31772119]
[1773463959909,7.52086143,2093.9,2093.2,45.99163653]
[1773463960212,0.67802208,2094.0,2093.2,45.99163653]
[1773463960411,0.67802208,2094.0,2093.3,17.259]
[1773463961205,0.67802208,2094.0,2093.2,17.96302773]
[1773463961415,0.67802208,2094.0,2093.3,45.3116088]
[1773463962214,0.67802208,2094.0,2093.4,0.67391534]
[1773463963617,0.67802208,2094.0,2093.4,18.01991534]
[1773463964313,0.67802208,2094.0,2093.4,18.04191534]
[1773463964616,0.01860451,2092.4,2090.3,0.67391534]
[1773463964812,0.67284353,2092.2,2090.3,0.67391534]
[1773463965110,0.67284353,2092.1,2090.5,0.67391534]
[1773463965312,0.67284353,2092.1,2090.7,0.67391534]
[1773463965514,0.67848374,2092.1,2090.9,0.67391534]
[1773463965712,0.00564021,2092.1,2090.9,0.67391534]
[1773463965912,0.67848374,2092.1,2090.9,0.67391534]
[1773463966113,0.67848374,2092.1,2091.0,17.231]
[1773463966315,0.67848374,2092.1,2091.1,2.09577238]
[1773463966714,0.67848374,2092.1,2091.3,2.09577238]
[1773463966915,0.00564021,2092.1,2091.4,2.09577238]
[1773463968013,0.00564021,2092.1,2091.5,2.09577238]
[1773463970115,0.00564021,2092.1,2091.5,19.50777238]
[1773463970311,0.00564021,2092.1,2091.6,2.09577238]
[1773463970511,2.11828386,2092.3,2091.7,2.09577238]
[1773463970722,2.11828386,2092.9,2091.7,2.09577238]
[1773463971418,2.11828386,2092.9,2091.7,19.54777238]
[1773463971614,2.0760738,2092.7,2091.1,2.06866368]
[1773463972219,2.0760738,2092.7,2091.3,2.06866368]
[1773463972812,2.0760738,2092.7,2091.5,2.06866368]
[1773463973219,2.0760738,2092.7,2091.6,2.06866368]
[1773463973423,2.0760738,2092.7,2091.6,19.13966368]
[1773463973616,2.0760738,2092.7,2091.7,2.06866368]
[1773463981032,2.0760738,2092.7,2091.9,2.06866368]
[1773463985937,2.0760738,2092.7,2091.7,2.06866368]
[1773463986137,2.0760738,2092.5,2091.7,2.06866368]
[1773463986339,2.0760738,2092.3,2091.7,2.06866368]
[1773463987033,2.0760738,2092.3,2091.5,2.06866368]
[1773463987235,13.49835273,2092.2,2091.5,2.06866368]
[1773463987438,7.52722345,2092.1,2091.5,2.06866368]
[1773463987640,7.52722345,2092.0,2091.5,2.06866368]
[1773463987939,3.89505548,2092.2,2091.5,2.06866368]
[1773463988238,7.90079871,2092.6,2091.5,2.06866368]
[1773463988639,2.0760738,2092.5,2091.5,2.06866368]
[1773463988834,2.0760738,2092.4,2091.5,2.06866368]
[1773463989539,2.0760738,2092.4,2091.5,19.59266368]
[1773463990040,2.0760738,2092.4,2091.6,2.06866368]
[1773463991239,2.0760738,2092.3,2091.6,2.06866368]
[1773463992136,2.0760738,2092.2,2091.6,2.06866368]
[1773463993236,7.90079871,2092.2,2091.6,2.06866368]
[1773463994037,5.82472491,2092.3,2091.6,2.06866368]
[1773463994236,5.82472491,2092.2,2091.6,2.06866368]
[1773463994542,2.0527578,2092.3,2091.6,2.06866368]
[1773463995137,2.47463846,2092.6,2091.6,2.06866368]
[1773463996140,2.76748486,2092.8,2091.6,2.06866368]
[1773463996544,2.76748486,2092.8,2091.8,0.25377695]
[1773463997838,0.00535286,2092.9,2091.8,0.25377695]
[1773463999045,0.00535286,2092.9,2092.0,0.43554245]
[1773463999240,0.00535286,2092.9,2092.2,0.43554245]
[1773463999445,2.74131883,2092.9,2092.2,0.00344583]
[1773463999845,2.74131883,2092.9,2092.2,0.44074797]
[1773464000943,0.23892,2092.4,2090.5,2.06866368]
[1773464001142,2.68975161,2091.7,2090.5,2.06866368]
[1773464001343,2.68975161,2091.5,2090.5,2.06866368]
[1773464001544,2.68975161,2091.3,2090.5,42.86866368]
[1773464001842,2.68975161,2091.1,2089.9,2.95683786]
[1773464002044,2.68975161,2090.9,2090.5,0.00568566]
[1773464002242,2.68975161,2090.9,2090.2,2.95683786]
[1773464002747,2.68975161,2090.9,2090.3,40.8]
[1773464003348,2.68975161,2090.9,2090.3,40.80563567]
[1773464003644,2.68975161,2090.9,2090.4,2.95683786]
[1773464004044,2.68975161,2091.2,2090.4,2.95683786]
[1773464004445,2.68975161,2091.2,2090.3,40.80563567]
[1773464005749,2.68975161,2091.2,2090.3,2.96247353]
[1773464007650,2.68975161,2091.2,2090.3,0.00563567]
[1773464007848,2.68975161,2091.2,2090.4,40.8]
[1773464008050,2.68975161,2091.2,2090.4,43.75683786]
[1773464009745,2.68975161,2091.2,2090.5,2.95683786]
[1773464013544,2.68975161,2091.2,2090.4,17.365]
[1773464013950,2.68975161,2091.2,2090.4,20.32183786]
[1773464019155,2.68975161,2091.2,2090.5,2.95683786]
[1773464021958,2.68975161,2091.2,2090.4,17.365]
[1773464021959,2.68975161,2091.2,2090.3,0.00563567]
[1773464022457,2.68975161,2091.2,2090.3,2.96247353]
[1773464028062,2.68975161,2091.2,2090.5,3.14878733]
[1773464028864,2.68975161,2091.2,2090.4,43.94878733]
[1773464029159,2.68975161,2091.2,2090.5,3.14878733]
[1773464029362,0.00336209,2091.3,2090.5,3.14878733]
[1773464029662,3.22474678,2091.2,2090.5,3.14878733]
[1773464032171,3.22474678,2091.2,2090.4,58.398]
[1773464032370,3.22474678,2091.2,2090.4,44.06970423]
[1773464032663,3.22474678,2091.2,2090.5,3.26970423]
[1773464034367,3.30373713,2091.0,2090.5,3.26970423]
[1773464035569,3.30373713,2091.0,2090.4,40.8]
[1773464035969,3.30373713,2091.0,2090.5,3.26970423]
[1773464036170,3.30373713,2091.0,2090.4,40.8]
[1773464037273,3.30373713,2091.0,2090.5,3.26970423]
[1773464037473,3.30373713,2091.2,2090.5,3.26970423]
[1773464037674,0.00336209,2091.3,2090.5,3.26970423]
[1773464038371,3.30709922,2091.3,2090.7,3.26970423]
[1773464039370,3.30709922,2091.3,2090.5,3.26970423]
[1773464039579,3.30709922,2091.3,2090.5,20.96970423]
[1773464039771,3.30709922,2091.3,2090.6,3.26970423]
[1773464042068,3.30373713,2091.6,2090.6,3.26970423]
[1773464042269,3.30373713,2091.8,2090.6,3.26970423]
[1773464042866,5.65606562,2091.9,2090.6,3.26970423]
[1773464043066,0.00553377,2091.9,2091.5,2.18963839]
[1773464043272,3.30373713,2092.3,2091.7,2.18963839]
[1773464043475,3.30373713,2092.3,2091.8,58.551]
[1773464043669,3.30373713,2092.3,2091.8,17.753]
[1773464043875,3.30373713,2092.3,2091.8,19.96510268]
[1773464044278,3.30873414,2092.3,2091.9,2.21979574]
[1773464045175,3.30373713,2093.1,2092.0,17.78]
[1773464045676,3.30373713,2093.1,2092.0,20.38542987]
[1773464046180,3.30914228,2093.1,2092.1,2.61083652]
[1773464047074,3.30373713,2092.6,2091.4,2.6674553]
[1773464047678,3.30373713,2092.6,2091.4,17.814]
[1773464048178,3.30373713,2092.6,2091.4,17.81911837]
[1773464048779,3.30373713,2092.6,2091.5,2.64285354]
[1773464050980,3.30373713,2092.6,2091.6,20.50149896]
[1773464051182,3.30373713,2092.6,2091.7,2.66049896]
[1773464052575,3.30373713,2092.6,2091.8,2.67325221]
[1773464052878,2.92864421,2092.6,2091.8,2.67325221]
[1773464053074,2.92864421,2092.6,2091.7,17.849]
[1773464054180,2.92864421,2092.6,2091.7,20.9301203]
[1773464054381,2.92864421,2092.6,2091.7,20.9311203]
[1773464054571,2.92864421,2092.6,2091.7,3.0791203]
[1773464057278,3.30373713,2092.8,2091.7,3.0791203]
[1773464058388,3.30373713,2092.8,2091.8,20.89843032]
[1773464058685,3.30373713,2092.8,2091.8,3.05043032]
[1773464063990,3.30373713,2092.8,2091.9,3.18019969]
[1773464072401,6.08728831,2092.7,2091.9,3.18019969]
[1773464073093,3.76226357,2093.0,2092.1,3.55854409]
[1773464073399,6.0878583,2092.9,2092.1,3.55854409]
[1773464073598,0.00540515,2093.1,2092.3,3.55846042]
[1773464073794,3.76226357,2093.0,2092.3,3.55846042]
[1773464074099,3.76226357,2093.0,2092.4,3.55573027]
[1773464075698,0.00540515,2093.1,2092.4,3.55573027]
[1773464076993,3.64279043,2093.1,2092.4,3.55573027]
[1773464077192,3.64279043,2093.1,2092.5,21.25517666]
[1773464077496,3.64279043,2093.1,2092.6,3.43937889]
[1773464080096,3.64279043,2093.1,2092.3,17.735]
[1773464080295,3.64279043,2093.1,2092.4,3.42318171]
[1773464082194,9.51843043,2093.1,2091.4,3.41876753]
[1773464082401,0.05716369,2091.3,2090.1,3.79592414]
[1773464082597,3.93515306,2091.6,2089.3,28.19226121]
[1773464082598,0.05716369,2091.1,2089.3,28.19226121]
[1773464082800,0.05716369,2091.1,2089.5,3.7690279]
[1773464082801,0.42323812,2090.9,2089.5,3.7690279]
[1773464083000,3.93515306,2090.2,2089.6,3.7690279]
[1773464083298,6.07064243,2090.1,2089.7,3.7690279]
[1773464083492,6.07064243,2090.0,2089.6,28.19563091]
[1773464083802,6.07064243,2089.9,2089.6,28.19563091]
[1773464084101,0.42776056,2090.1,2089.6,28.19563091]
[1773464084699,0.42776056,2090.1,2088.7,0.87441653]
[1773464085005,3.63738528,2089.8,2088.7,0.87441653]
[1773464085302,7.53547053,2089.7,2088.8,3.7690279]
[1773464085602,3.63738528,2089.8,2089.2,3.7690279]
[1773464086001,3.63738528,2089.8,2089.3,24.12729559]
[1773464087098,3.35613933,2090.2,2089.5,5.60828347]
[1773464087703,3.35613933,2090.2,2089.6,24.12729559]
[1773464088604,3.35613933,2090.2,2089.2,5.69229482]
[1773464089399,3.35613933,2090.2,2089.4,5.69229631]
[1773464090002,3.35613933,2090.2,2089.6,5.69067686]
[1773464090204,0.00384107,2090.2,2089.6,5.69067686]
[1773464090403,0.00384107,2090.2,2089.8,5.69067686]
[1773464090704,0.69751084,2090.8,2089.8,5.69067686]
[1773464091006,0.69751084,2090.8,2090.0,5.69227681]
[1773464091198,0.69751084,2090.8,2090.1,11.9488]
[1773464091399,0.68118389,2091.5,2090.3,5.93707625]
[1773464091805,0.68118389,2091.5,2090.3,5.94320579]
[1773464091806,0.68118389,2091.4,2090.3,5.94320579]
[1773464092600,0.68118389,2091.4,2090.4,14.63660626]
[1773464093306,4.17419306,2091.3,2089.9,6.04850313]
[1773464093503,0.03251902,2091.1,2090.1,6.02715617]
[1773464093699,0.03251902,2091.0,2090.1,6.02715617]
[1773464093903,0.03251902,2090.9,2090.1,6.02715617]
[1773464094105,0.03251902,2090.9,2090.2,16.46817588]
[1773464094310,0.03251902,2090.9,2090.2,6.02715617]
[1773464094505,7.66168371,2091.3,2090.3,16.62203217]
[1773464094705,7.42264371,2091.2,2090.3,16.62203217]
[1773464094908,0.23904,2091.3,2090.3,16.62203217]
[1773464095704,0.23904,2091.3,2090.4,6.19007868]
[1773464095903,4.17688374,2091.5,2090.5,8.76456253]
[1773464096603,0.23903,2091.4,2090.5,10.44101971]
[1773464097204,0.23903,2091.4,2090.6,6.19007266]
[1773464099809,0.23903,2091.4,2090.7,7.86653586]
[1773464100612,0.23903,2091.4,2090.7,10.44101971]
[1773464101114,0.24173068,2091.5,2090.8,18.1389725]
[1773464101306,0.24173068,2091.5,2090.8,6.1901725]
[1773464101510,7.77088885,2091.5,2090.9,16.63125442]
[1773464101811,7.52915817,2091.4,2090.9,6.19023471]
[1773464102010,0.24173068,2091.5,2090.9,6.19023471]
[1773464102211,0.00582314,2091.5,2090.9,16.63125442]
[1773464102514,0.00582314,2091.5,2091.0,6.19015636]
[1773464102712,7.53229921,2091.6,2091.0,6.19015636]
[1773464102913,7.53229921,2091.5,2090.3,5.93707625]
[1773464103110,5.48474115,2091.3,2090.7,5.93707625]
[1773464103508,5.48474115,2091.3,2091.0,11.9488]
[1773464103810,5.48904602,2091.3,2090.8,16.37809596]
[1773464104014,5.48904602,2091.3,2090.8,5.93707625]
[1773464104015,0.00430487,2091.3,2090.8,5.93707625]
[1773464104211,7.53166887,2091.4,2091.0,5.93707625]
[1773464104411,5.48474115,2091.6,2090.5,5.93707625]
[1773464104610,5.48474115,2091.4,2090.5,5.93707625]
[1773464105317,5.48862113,2091.4,2090.5,5.93707625]
[1773464105617,0.00387998,2091.4,2090.7,5.93707625]
[1773464106317,7.53571093,2091.4,2090.7,5.93707625]
[1773464106715,7.53571093,2091.4,2090.9,5.93707625]
[1773464107318,7.53183095,2091.3,2091.0,10.44101971]
[1773464107720,7.53183095,2091.3,2091.0,16.37809596]
[1773464107918,7.53183095,2091.3,2091.1,5.93707625]
[1773464108121,5.48862113,2091.4,2091.0,10.44101971]
[1773464108320,5.48474115,2091.2,2090.8,5.93707625]
[1773464108521,5.48474115,2091.2,2090.9,10.43156292]
[1773464108721,5.48862113,2091.4,2090.9,16.36863917]
[1773464108920,13.01660812,2091.3,2090.9,16.36863917]
[1773464109111,7.53186697,2091.2,2090.9,16.36863917]
[1773464109520,7.53186697,2091.2,2091.0,5.93707625]
[1773464109714,7.53186697,2091.1,2091.0,5.93707625]
[1773464109921,7.53186697,2091.3,2090.9,16.36863917]
[1773464110121,7.53186697,2091.2,2091.0,5.93707625]
[1773464110321,9.37537448,2091.3,2090.9,16.36863917]
[1773464111324,3.89063333,2091.2,2090.9,16.36863917]
[1773464112321,3.89063333,2091.0,2090.9,3.81552756]
[1773464113229,3.89063333,2091.2,2090.9,3.81552756]
[1773464115225,3.89063333,2091.1,2090.9,3.81552756]
[1773464115627,0.00387998,2091.4,2090.9,3.81552756]
[1773464115834,5.48474115,2091.7,2090.9,3.81552756]
[1773464116028,2.93284621,2091.5,2090.9,3.81552756]
[1773464116228,5.48474115,2091.6,2090.9,3.81552756]
[1773464116931,5.4904983,2091.6,2090.9,3.81552756]
[1773464118333,0.00575715,2091.6,2090.9,3.81552756]
[1773464119634,5.4904983,2091.6,2090.9,3.81552756]
[1773464120336,0.00575715,2091.6,2090.9,3.81552756]
[1773464120629,5.4904983,2091.6,2090.9,3.81552756]
[1773464122238,6.88371675,2091.5,2090.9,3.81552756]
[1773464122439,6.88371675,2091.4,2090.9,3.81552756]
[1773464122636,6.88371675,2091.3,2090.9,3.81552756]
[1773464122836,2.93284621,2091.5,2090.9,3.81552756]
[1773464123130,6.88355499,2091.4,2090.9,3.81552756]
[1773464123335,6.88355499,2091.3,2090.9,3.81552756]
[1773464123537,2.93284621,2091.5,2090.9,3.81552756]
[1773464123737,13.79981562,2091.4,2090.9,3.81552756]
[1773464123939,6.88469225,2091.3,2090.9,3.81552756]
[1773464124140,2.93284621,2091.5,2090.9,3.81552756]
[1773464124440,13.79935651,2091.4,2090.9,3.81552756]
[1773464124740,6.88423314,2091.3,2090.9,3.81552756]
[1773464124940,2.93284621,2091.5,2090.9,3.81552756]
[1773464125139,6.88472451,2091.4,2090.9,3.81552756]
[1773464125339,6.88472451,2091.3,2090.9,3.81552756]
[1773464125540,2.93284621,2091.5,2090.9,3.81552756]
[1773464129245,9.84796958,2091.5,2090.9,3.81552756]
[1773464134556,6.91512337,2091.4,2090.9,3.81552756]
[1773464137446,6.91512337,2091.3,2090.9,3.81552756]
[1773464138550,6.91512337,2091.5,2090.9,3.81552756]
[1773464138751,13.6358183,2091.4,2090.9,3.81552756]
[1773464138944,6.91512337,2091.4,2090.9,3.81552756]
[1773464139148,9.84796958,2091.3,2090.9,3.81552756]
[1773464139344,6.91512337,2091.3,2090.9,3.81552756]
[1773464139954,6.91512337,2091.4,2090.9,3.81552756]
[1773464141757,6.91512337,2091.4,2090.8,17.799]
[1773464142058,9.84796958,2091.3,2090.9,6.79944338]
[1773464142253,6.91512337,2091.3,2090.9,6.79944338]
[1773464144458,6.91512337,2091.4,2090.9,6.79944338]
[1773464144658,6.73000593,2091.3,2090.9,6.79944338]
[1773464144859,6.91512337,2091.4,2090.9,6.79944338]
[1773464145062,6.73001955,2091.3,2090.9,6.79944338]
[1773464145353,6.91512337,2091.4,2090.9,6.79944338]
[1773464145560,9.66701006,2091.3,2090.9,6.79944338]
[1773464145857,6.91512337,2091.2,2090.9,6.79944338]
[1773464146058,6.91512337,2091.2,2090.9,6.74571026]
[1773464146453,9.97585408,2091.3,2090.9,6.74571026]
[1773464146653,2.93284621,2091.3,2090.5,1.50074115]
[1773464146849,7.04300787,2091.2,2090.6,24.546096]
[1773464147054,2.93284621,2091.3,2090.7,8.26694675]
[1773464147757,7.04876502,2091.6,2091.0,3.83767887]
[1773464147949,7.04300787,2091.4,2091.0,3.83767887]
[1773464149954,7.04876502,2091.6,2091.0,3.83767887]
[1773464150160,6.73374878,2091.5,2091.0,3.83767887]
[1773464150358,0.68411274,2091.4,2091.0,3.83767887]
[1773464150555,7.04876502,2091.6,2091.0,3.83767887]
[1773464151061,0.00575715,2091.6,2091.2,0.38538795]
[1773464154364,7.76800095,2091.9,2091.2,0.38538795]
[1773464155367,7.77246721,2091.9,2091.2,0.38538795]
[1773464156061,1.50074115,2091.7,2090.7,0.23911]
[1773464156263,7.77294383,2090.9,2090.2,0.19500845]
[1773464156761,7.77294383,2090.9,2090.3,0.18642628]
[1773464160268,7.65545727,2091.5,2090.3,0.18642628]
[1773464161762,7.65545727,2091.5,2090.4,17.829]
[1773464162167,7.65545727,2091.5,2090.3,0.18642628]
[1773464162367,7.76527754,2091.3,2090.3,0.18642628]
[1773464162667,7.76562415,2091.1,2090.3,17.599]
[1773464163269,7.76562415,2091.1,2090.2,0.09973992]
[1773464163469,7.76562415,2091.1,2090.2,17.39673992]
[1773464163669,7.76562415,2091.1,2090.3,0.10725783]
[1773464165272,7.76562415,2091.1,2090.2,0.09263176]
[1773464165474,7.76562415,2091.1,2090.2,17.48963176]
[1773464165873,7.76562415,2091.1,2090.2,0.09263176]
[1773464166174,7.76562415,2091.1,2090.2,17.52063176]
[1773464167070,7.76562415,2091.1,2090.3,0.10782445]
[1773464168281,7.76562415,2091.1,2090.2,0.07902739]
[1773464168574,7.76562415,2091.1,2090.2,17.59402739]
[1773464168768,7.76562415,2091.1,2090.1,58.40851214]
[1773464168969,7.76562415,2091.1,2090.1,58.41151214]
[1773464169271,7.76562415,2091.1,2090.1,40.87651214]
[1773464169575,7.76562415,2091.1,2090.1,58.42351214]
[1773464170374,7.72110607,2090.9,2089.9,0.03292478]
[1773464170574,7.72112684,2090.7,2089.7,0.03292478]
[1773464170773,7.72112684,2090.7,2089.7,17.38692478]
[1773464170971,7.72112684,2090.7,2089.8,40.8]
[1773464171474,7.72112684,2090.7,2089.8,40.80620488]
[1773464171874,7.72353491,2090.5,2089.8,0.00620488]
[1773464172779,7.96267491,2090.5,2089.2,0.02594537]
[1773464172969,7.70453536,2090.3,2089.0,0.00555522]
[1773464173166,7.70453536,2090.1,2089.0,0.00555522]
[1773464173369,7.70453536,2090.1,2089.1,40.80555522]
[1773464173771,7.71043251,2090.1,2089.1,57.9530675]
[1773464173970,7.71043251,2090.1,2089.1,40.80551228]
[1773464174277,7.94962251,2090.1,2089.1,0.00551228]
[1773464175074,7.70373079,2089.9,2089.1,0.00551228]
[1773464176080,15.53573079,2089.9,2089.1,0.00551228]
[1773464176276,7.7034628,2089.8,2089.1,0.00551228]
[1773464176575,7.7034628,2089.8,2088.8,40.8]
[1773464176880,6.95977838,2088.8,2087.3,7.18713032]
[1773464177081,6.95977838,2088.6,2087.3,7.18713032]
[1773464177276,6.95977838,2088.6,2087.4,40.8]
[1773464177677,6.96535986,2088.6,2087.4,47.99797746]
[1773464177876,6.96535986,2088.6,2087.5,7.19303357]
[1773464178277,6.96535986,2088.6,2087.4,0.00494389]
[1773464179881,6.96535986,2088.6,2087.4,7.54473378]
[1773464180476,6.96535986,2088.6,2087.4,0.00494389]
[1773464180770,6.96535986,2088.6,2087.4,7.54473378]
[1773464181176,6.96535986,2088.6,2087.6,7.587555]
[1773464181981,6.96535986,2088.6,2087.7,7.57657015]
[1773464182383,6.96535986,2088.6,2087.5,7.81605015]
[1773464182683,6.96535986,2088.6,2087.5,7.57657015]
[1773464184885,6.96535986,2088.6,2087.4,7.37913237]
[1773464186593,6.96535986,2088.6,2087.5,7.3551154]
[1773464186989,6.96535986,2088.6,2087.7,7.33567466]
[1773464187696,6.96535986,2088.6,2087.6,0.23947]
[1773464187888,6.96535986,2088.6,2087.6,7.55166031]
[1773464188192,7.71179693,2088.5,2087.6,7.55166031]
[1773464188689,0.00558148,2088.6,2087.7,7.29118148]
[1773464188987,7.71179693,2089.0,2087.9,7.27144812]
[1773464189188,7.71179693,2089.0,2088.1,7.27144812]
[1773464189692,7.71179693,2089.0,2088.0,0.23942]
[1773464189693,7.71179693,2089.0,2088.3,7.15836676]
[1773464190083,7.71637333,2089.0,2088.3,7.15836676]
[1773464192888,0.0045764,2089.0,2088.3,7.15836676]
[1773464193088,7.71637333,2089.0,2088.3,7.15836676]
[1773464194596,0.00089029,2089.0,2088.3,7.15836676]
[1773464194791,7.71179693,2089.2,2088.3,7.15836676]
[1773464194993,7.71179693,2089.2,2088.5,7.17582492]
[1773464195997,7.71768018,2089.2,2088.5,7.17582492]
[1773464196398,7.71179693,2089.4,2088.7,7.4396939]
[1773464197398,7.71731763,2089.4,2088.7,7.4396939]
[1773464200096,7.71731763,2089.4,2088.5,7.08982412]
[1773464201098,7.71731763,2089.4,2088.5,7.32918412]
[1773464201293,0.0055207,2089.4,2088.5,7.32918412]
[1773464202201,7e-07,2089.4,2089.0,6.81933475]
[1773464202791,7.71179693,2089.7,2089.0,6.81933475]
[1773464203401,7.71179693,2090.0,2089.2,6.97707291]
[1773464203901,7.71633945,2090.0,2089.2,6.98150261]
[1773464208407,7.43303968,2090.0,2089.4,6.95436835]
[1773464209810,7.43303968,2090.0,2089.4,47.75436835]
[1773464211511,7.43303968,2090.0,2089.5,6.64970886]
[1773464224415,0.00454252,2090.0,2089.5,6.64970886]
[1773464224619,7.65603521,2090.0,2089.4,18.007]
[1773464224924,7.65603521,2090.0,2089.4,24.61124856]
[1773464225822,9.15885081,2090.0,2089.2,0.0044297]
[1773464226020,7.65149269,2089.9,2089.2,0.0044297]
[1773464226215,7.65149269,2089.7,2089.0,6.55746935]
[1773464227124,7.65149269,2089.7,2088.9,47.33587222]
[1773464227323,7.65149269,2089.7,2089.0,6.53587222]
[1773464227525,7.65149269,2089.9,2089.2,6.53089098]
[1773464230329,7.65149269,2089.9,2089.1,24.32427131]
[1773464230830,7.65149269,2089.9,2089.2,6.39211948]
[1773464231228,7.65149269,2089.7,2089.2,6.39211948]
[1773464232235,7.65149269,2089.7,2089.0,6.34710028]
[1773464232434,7.65149269,2089.7,2089.0,24.39810028]
[1773464233824,7.65149269,2089.7,2089.0,6.34710028]
[1773464235836,7.65149269,2089.5,2089.0,6.34710028]
[1773464238331,11.58217709,2089.9,2089.0,6.34710028]
[1773464238530,7.65149269,2089.7,2089.0,6.34710028]
[1773464240032,7.65149269,2089.9,2089.0,6.58640028]
[1773464240234,14.17084002,2089.8,2089.0,6.58640028]
[1773464240427,7.65603521,2090.0,2089.0,6.58640028]
[1773464243934,7.65603521,2090.0,2089.2,5.88563682]
[1773464244134,7.65603521,2090.0,2089.3,24.06163682]
[1773464245137,7.65603521,2090.0,2089.4,5.8709785]
[1773464249943,7.65603521,2090.0,2089.3,18.176]
[1773464250142,7.65603521,2090.0,2089.0,5.99374157]
[1773464250341,7.65603521,2090.0,2089.2,5.75444157]
[1773464261550,7.65603521,2090.0,2089.3,5.56119448]
[1773464262252,6.68239854,2090.2,2089.5,6.22761259]
[1773464263347,6.68733745,2090.2,2089.5,6.22761259]
[1773464268151,6.68733745,2090.2,2089.4,1.50267224]
[1773464268152,6.93061672,2089.9,2089.3,6.15172727]
[1773464268358,6.93061672,2089.9,2089.3,24.59872727]
[1773464268558,6.93061672,2089.9,2089.4,6.15459474]
[1773464269160,6.93061672,2089.9,2089.2,6.12980962]
[1773464269762,6.93061672,2089.9,2089.2,24.58280962]
[1773464270956,6.93061672,2089.9,2089.3,6.06566205]
[1773464271153,6.32440858,2089.7,2089.1,6.04214894]
[1773464273961,6.32440858,2089.7,2089.1,24.51814894]
[1773464274163,6.32440858,2089.7,2089.2,5.92545682]
[1773464275065,6.32440858,2089.7,2089.2,24.40945682]
[1773464275966,6.32440858,2089.7,2089.2,18.491]
[1773464276363,6.32440858,2089.7,2089.2,24.35466455]
[1773464276665,6.32440858,2089.7,2089.3,5.86439221]
[1773464277466,6.32440858,2089.7,2089.2,24.33056077]
[1773464281670,6.32440858,2089.7,2089.3,5.74173312]
[1773464281970,6.32440858,2089.9,2089.3,5.74173312]
[1773464284067,6.32440858,2090.1,2089.3,5.74173312]
[1773464286872,6.32440858,2090.1,2089.5,5.57971408]
[1773464287775,6.32934749,2090.2,2089.7,5.58199742]
[1773464288069,6.32440858,2090.4,2089.7,5.58199742]
[1773464288275,6.32440858,2090.4,2089.9,5.55731127]
[1773464288981,3.9306844,2090.8,2089.9,5.55731127]
[1773464289278,6.32440858,2090.6,2089.9,5.55731127]
[1773464289477,6.32440858,2090.6,2090.1,5.5755653]
[1773464290079,6.32440858,2090.6,2090.3,5.55126255]
[1773464290977,6.04099231,2090.6,2090.3,5.55126255]
[1773464291175,6.33025784,2090.8,2090.3,5.55126255]
[1773464291571,6.33025784,2090.8,2090.3,24.16226255]
[1773464291879,6.33025784,2090.8,2090.4,5.89309276]
[1773464292079,6.33025784,2090.8,2090.4,5.89759679]
[1773464295079,6.33025784,2090.8,2090.4,0.00450403]
[1773464298182,6.33025784,2090.8,2090.4,5.70450419]
[1773464298682,6.33025784,2090.8,2090.2,59.489]
[1773464299284,6.33025784,2090.8,2090.2,24.37104577]
[1773464299581,6.33025784,2090.8,2090.3,5.68204577]
[1773464299971,6.33025784,2090.8,2090.2,65.15258877]
[1773464300478,6.33025784,2090.8,2090.2,24.35258877]
[1773464301184,6.33025784,2090.8,2090.2,0.00494945]
[1773464306483,6.33025784,2090.8,2090.2,5.45088988]
[1773464310289,6.33025784,2090.8,2090.2,0.00494945]
[1773464310989,6.2787985,2090.6,2090.2,0.00494945]
[1773464312793,6.2787985,2090.6,2090.0,40.8]
[1773464313693,6.2787985,2090.6,2089.9,24.17941535]
[1773464313895,6.2787985,2090.6,2089.9,24.18407995]
[1773464314095,6.2787985,2090.6,2089.9,64.98407995]
[1773464314293,6.2787985,2090.6,2089.9,0.0046646]
[1773464314697,6.2787985,2090.6,2089.9,5.26993022]
[1773464314889,1.50267224,2090.3,2089.4,5.26993022]
[1773464315094,6.2787985,2090.2,2089.5,5.24600672]
[1773464315499,6.2787985,2090.2,2089.6,40.8]
[1773464315892,6.2787985,2090.2,2089.6,40.80351382]
[1773464317097,6.2787985,2090.2,2089.6,0.00351382]
[1773464321091,6.2787985,2090.0,2089.6,0.00351382]
[1773464321294,6.2787985,2090.0,2089.4,40.8]
[1773464322096,6.2787985,2090.0,2089.5,4.98181825]
[1773464322298,6.2787985,2090.4,2089.5,4.98600125]
[1773464323397,6.2787985,2090.4,2089.7,4.95924745]
[1773464323592,6.2787985,2090.4,2089.8,18.973]
[1773464323797,6.2787985,2090.4,2089.5,0.004183]
[1773464324001,6.2787985,2090.4,2089.7,4.92547715]
[1773464329402,6.2787985,2090.4,2089.7,23.97847715]
[1773464334505,8.06084926,2090.8,2089.8,4.6320481]
[1773464334506,6.21839294,2090.6,2089.8,4.6320481]